[Event "African Individual Chess-ch Open 2024"]
[Site "Accra"]
[Date "2024.03.15"]
[Round "2.3"]
[White "Mhango, Banele"]
[Black "Rakotomaharo, Fy Antenaina"]
[Result "*"]
[ECO "E06"]
[WhiteElo "2193"]
[BlackElo "2454"]
[Annotator "TA"]
[PlyCount "20"]
[EventDate "2024.03.13"]
[EventCountry "GHA"]
[SourceTitle "playchess.com"]
[Source "ChessBase"]
[SourceQuality "1"]
[TimeControl "5400+30"]

{[%evp 14,20,23,13,20,14,38,0,29]} 1. d4 {[%emt 0:00:03]} d5 {[%emt 0:00:14]} 2. c4 {[%emt 0:00:20]} e6 {[%emt 0:00:09]} 3. Nf3 {[%emt 0:00:26]} Nf6 {[%emt 0:00:35]} 4. g3 {[%emt 0:00:48]} Be7 {[%emt 0:00:30]} 5. Bg2 {[%emt 0:00:05]} O-O {[%emt 0:00:06]} 6. O-O {[%emt 0:00:04]} c6 {[%emt 0:00:50][%cal Bc7c6,Bc6c5][%mdl 32]} 7. Qc2 {[%emt 0:00:17]} b6 {[%emt 0:00:07]} 8. Nbd2 {[%emt 0:01:00]} Ba6 {[%emt 0:00:11]} 9. Re1 {[%emt 0:03:50]} c5 {[%emt 0:12:09]} 10. cxd5 {[%emt 0:06:27]} exd5 {[%emt 0:00:43] Ein ziemlich ruhiges Remis.   Gewichteter Fehlerwert: Weiß=0.18 (sehr präzise) /Schwarz=0.16 (sehr präzise) .  Ungenau:       	Weiß=1     	Schwarz=1} *

[Event "African Individual Chess-ch Open 2024"]
[Site "Accra"]
[Date "2024.03.15"]
[Round "2.4"]
[White "Silva, David"]
[Black "Cogan, Nicolas"]
[Result "*"]
[ECO "B22"]
[WhiteElo "2358"]
[BlackElo "2070"]
[Annotator "TA"]
[PlyCount "23"]
[EventDate "2024.03.13"]
[EventCountry "GHA"]
[SourceTitle "playchess.com"]
[Source "ChessBase"]
[SourceQuality "1"]
[TimeControl "5400+30"]

{[%evp 15,23,-10,18,10,12,8,0,-15,-14,-11]} 1. e4 {[%emt 0:11:12]} c5 {[%emt 0:00:07]} 2. c3 {[%emt 0:04:44]} Nf6 {[%emt 0:00:19]} 3. e5 {[%emt 0:00:06]} Nd5 {[%emt 0:00:06]} 4. d4 {[%emt 0:00:05]} cxd4 {[%emt 0:00:15]} 5. Nf3 {[%emt 0:00:02]} Nc6 {[%emt 0:00:10]} 6. cxd4 {[%emt 0:00:51]} d6 {[%emt 0:00:09]} 7. Bc4 {[%emt 0:00:05]} Nb6 {[%emt 0:00:33]} 8. Bb5 {[%emt 0:00:08]} Bd7 {[%emt 0:00:09][%cal Oc6e5] The position is equal.} 9. exd6 {[%emt 0:01:28]} e6 {[%emt 0:00:15]} 10. Bg5 {[%emt 0:02:40]} f6 {[%emt 0:00:16]} 11. Be3 {[%emt 0:03:55]} Bxd6 {[%emt 0:02:41]} 12. O-O {[%emt 0:00:53] A rather calm draw.   Weighted Error Value: White=0.08 (flawless) /Black=0.06 (flawless) .  OK:         	White=2     	Black=3} *

[Event "African Individual Chess-ch Open 2024"]
[Site "Accra"]
[Date "2024.03.15"]
[Round "2.5"]
[White "Paiva, Donaldo"]
[Black "Mwali, Chitumbo"]
[Result "*"]
[ECO "A61"]
[WhiteElo "2172"]
[BlackElo "2340"]
[Annotator "TA"]
[PlyCount "26"]
[EventDate "2024.03.13"]
[EventCountry "GHA"]
[SourceTitle "playchess.com"]
[Source "ChessBase"]
[SourceQuality "1"]
[TimeControl "5400+30"]

{[%evp 18,26,40,28,36,30,33,29,43,13,54]} 1. d4 {[%emt 0:00:01]} Nf6 {[%emt 0:00:55]} 2. c4 {[%emt 0:00:03]} c5 {[%emt 0:00:27]} 3. d5 {[%emt 0:00:02]} e6 {[%emt 0:00:06]} 4. Nc3 {[%emt 0:00:04]} exd5 {[%emt 0:00:04]} 5. cxd5 {[%emt 0:00:07]} d6 {[%emt 0:00:03]} 6. Bf4 {[%emt 0:00:09]} g6 {[%emt 0:03:07]} 7. h3 {[%emt 0:00:21]} a6 {[%emt 0:02:23]} 8. a4 {[%emt 0:00:06]} Bg7 {[%emt 0:00:30]} 9. Nf3 {[%emt 0:00:06]} O-O {[%emt 0:00:29]} 10. e3 {[%emt 0:00:09]} Ne8 {[%emt 0:03:08]} 11. Be2 {[%emt 0:01:56]} Nd7 {[%emt 0:01:36]} 12. O-O {[%emt 0:01:49]} Rb8 {[%emt 0:01:22]} 13. Bh2 {[%emt 0:08:23]} f5 {[%emt 0:01:31] White took control after the opening.   Weighted Error Value: White=0.08 (flawless) /Black=0.07 (flawless) .  Inaccurate:     	White=1     	Black=1      OK:         	White=1     	Black=1} *

[Event "African Individual Chess-ch Open 2024"]
[Site "Accra"]
[Date "2024.03.15"]
[Round "2.6"]
[White "Kayonde, Andrew"]
[Black "De Gondo, Simplice Armel"]
[Result "*"]
[ECO "D43"]
[WhiteElo "2321"]
[BlackElo "2024"]
[Annotator "TA"]
[PlyCount "29"]
[EventDate "2024.03.13"]
[EventCountry "GHA"]
[SourceTitle "playchess.com"]
[Source "ChessBase"]
[SourceQuality "1"]
[TimeControl "5400+30"]

{[%evp 13,29,4,17,11,8,28,29,33,29,41,31,26,14,15,0,-15,33,-8]} 1. d4 {[%emt 0:00:10]} d5 {[%emt 0:00:01]} 2. c4 {[%emt 0:00:10]} c6 {[%emt 0:00:01]} 3. Nf3 {[%emt 0:00:19]} Nf6 {[%emt 0:00:01]} 4. Nc3 {[%emt 0:00:12]} e6 {[%emt 0:00:02]} 5. Bg5 {[%emt 0:00:13]} h6 {[%emt 0:00:02]} 6. Bxf6 {[%emt 0:01:36]} Qxf6 {[%emt 0:00:02]} 7. e3 {[%emt 0:00:20][%cal Be2e3,Be3e4][%mdl 32]} g6 {[%emt 0:00:01]} 8. Bd3 {[%emt 1:31:30]} dxc4 {[%emt 0:00:03]} 9. Bxc4 {[%emt 0:00:00]} Bg7 {[%emt 0:00:04]} 10. e4 {[%emt 0:00:00] Weiß hat minimalen Vorteil.} Qe7 {[%emt 0:00:02]} 11. O-O {[%emt 0:00:00]} O-O {[%emt 0:00:02]} 12. Qe2 {[%emt 0:00:00]} Rd8 {[%emt 0:00:05][%cal Ob7b5]} 13. Qe3 {[%emt 0:00:00]} Qb4 {[%emt 0:04:35][%csl LRb2,LRc4]} 14. Bb3 {[%emt 0:00:00]} a5 {[%emt 0:01:43]} (14... c5 $1 $11 15. dxc5 Bd7) 15. Na4 {[%emt 0:00:00] Gewichteter Fehlerwert: Weiß=0.05 (makellos) /Schwarz=0.09 (makellos) .  Fehler:       	---       	Schwarz=1     Ungenau:       	Weiß=1     	---        OK:         	Weiß=1     	Schwarz=3} *

[Event "African Individual Chess-ch Open 2024"]
[Site "Accra"]
[Date "2024.03.15"]
[Round "2.7"]
[White "Rongwane, Gomolemo"]
[Black "KIGIGHA, Bomo Lovet"]
[Result "*"]
[ECO "A11"]
[WhiteElo "2021"]
[BlackElo "2231"]
[Annotator "TA"]
[PlyCount "18"]
[EventDate "2024.03.13"]
[EventCountry "GHA"]
[SourceTitle "playchess.com"]
[Source "ChessBase"]
[SourceQuality "1"]
[TimeControl "5400+30"]

{[%evp 12,18,40,0,47,49,43,44,73]} 1. Nf3 {[%emt 0:00:17]} Nf6 {[%emt 0:00:01]} 2. g3 {[%emt 0:01:15]} d5 {[%emt 0:00:09]} 3. Bg2 {[%emt 0:00:29]} c6 {[%emt 0:02:32]} 4. O-O {[%emt 0:01:57]} Bf5 {[%emt 0:00:07]} 5. d3 {[%emt 0:00:31]} e6 {[%emt 0:00:17]} 6. c4 {[%emt 0:03:20]} Nbd7 {[%emt 0:02:11]} 7. Nc3 {[%emt 0:02:29]} Bb4 {[%emt 0:04:37]} (7... dxc4 $11 {should be considered.} 8. dxc4 h6) 8. Qb3 {[%emt 0:02:09]} a5 {[%emt 0:01:17]} 9. a3 {[%emt 0:00:32]} Nc5 {[%emt 0:03:49] Weighted Error Value: White=0.12 (very precise) /Black=0.21 (precise) .  Inaccurate:     	---       	Black=1      OK:         	---       	Black=1} *

[Event "African Individual Chess-ch Open 2024"]
[Site "Accra"]
[Date "2024.03.15"]
[Round "2.9"]
[White "Ntamatungiro, Wilfried"]
[Black "Wanyama, Harold"]
[Result "*"]
[ECO "B12"]
[WhiteElo "1905"]
[BlackElo "2226"]
[Annotator "RC"]
[PlyCount "36"]
[EventDate "2024.03.13"]
[EventCountry "GHA"]
[SourceTitle "playchess.com"]
[Source "ChessBase"]
[SourceQuality "1"]
[TimeControl "5400+30"]

1. e4 {[%emt 0:00:03]} c6 {[%emt 0:00:17]} 2. d4 {[%emt 0:00:22]} d5 {[%emt 0:00:10]} 3. e5 {[%emt 0:00:40]} Bf5 {[%emt 0:00:10]} 4. Ne2 {[%emt 1:31:25]} e6 {[%emt 1:31:53]} 5. Ng3 {[%emt 0:00:30]} Bg6 {[%emt 0:00:30]} 6. h4 {[%emt 0:00:00]} h6 {[%emt 0:00:00]} 7. h5 {[%emt 0:00:00]} Bh7 {[%emt 0:00:00]} 8. Bd3 {[%emt 0:00:00]} Bxd3 {[%emt 0:00:00]} 9. cxd3 {[%emt 0:00:00]} Qb6 {[%emt 0:00:00]} 10. Be3 {[%emt 0:00:00]} c5 {[%emt 0:00:00]} 11. dxc5 {[%emt 0:00:00]} Qxb2 {[%emt 0:00:00]} 12. Nd2 {[%emt 0:00:00]} Qxe5 {[%emt 0:00:00]} 13. d4 {[%emt 0:00:00]} Qc7 {[%emt 0:00:00]} 14. O-O {[%emt 0:00:00]} Nf6 {[%emt 0:00:00]} 15. Qf3 {[%emt 0:00:00]} Nc6 {[%emt 0:00:00]} 16. Bf4 {[%emt 0:00:00]} Qc8 {[%emt 0:00:00]} 17. Nb3 {[%emt 0:00:00]} Be7 {[%emt 0:00:00]} 18. Rfe1 {[%emt 0:00:00]} O-O {[%emt 0:00:00]} *

[Event "African Individual Chess-ch Open 2024"]
[Site "Accra"]
[Date "2024.03.15"]
[Round "2.10"]
[White "Zhemba, Jemusse"]
[Black "Acheampong Dave Quansah Chief"]
[Result "*"]
[ECO "E06"]
[WhiteElo "2226"]
[BlackElo "1719"]
[Annotator "RC"]
[PlyCount "27"]
[EventDate "2024.03.13"]
[EventCountry "GHA"]
[SourceTitle "playchess.com"]
[Source "ChessBase"]
[SourceQuality "1"]
[TimeControl "5400+30"]

1. Nf3 {[%emt 0:00:35]} d5 {[%emt 0:00:41]} 2. d4 {[%emt 0:00:22]} Nf6 {[%emt 0:00:24]} 3. c4 {[%emt 0:00:08]} e6 {[%emt 0:00:13]} 4. g3 {[%emt 0:00:07]} Be7 {[%emt 0:00:32]} 5. Bg2 {[%emt 0:00:08]} O-O {[%emt 0:00:57]} 6. O-O {[%emt 0:00:08]} c5 {[%emt 1:30:43]} 7. cxd5 {[%emt 0:00:32]} Nxd5 {[%emt 0:00:00]} 8. dxc5 {[%emt 0:02:18]} Bxc5 {[%emt 0:00:00]} 9. Qc2 {[%emt 0:00:36]} Qb6 {[%emt 0:00:00]} 10. a3 {[%emt 0:02:03]} Be7 {[%emt 0:00:00]} 11. e4 {[%emt 0:00:26]} Nf6 {[%emt 0:00:00]} 12. Be3 {[%emt 0:00:34]} Qc6 {[%emt 0:00:00]} 13. Nc3 {[%emt 0:00:16]} Nbd7 {[%emt 0:00:00]} 14. Rac1 {[%emt 0:01:29]} *

[Event "African Individual Chess-ch Open 2024"]
[Site "Accra"]
[Date "2024.03.15"]
[Round "2.12"]
[White "Oluka Robert Mcligeyo"]
[Black "Mahamat Hachim Bachar"]
[Result "*"]
[ECO "C06"]
[WhiteElo "2041"]
[BlackElo "1843"]
[Annotator "RC"]
[PlyCount "30"]
[EventDate "2024.03.13"]
[EventCountry "GHA"]
[SourceTitle "playchess.com"]
[Source "ChessBase"]
[SourceQuality "1"]
[TimeControl "5400+30"]

1. e4 {[%emt 0:00:04]} e6 {[%emt 0:00:32]} 2. d4 {[%emt 0:01:34]} d5 {[%emt 0:00:27]} 3. Nd2 {[%emt 0:00:11]} Nf6 {[%emt 0:00:38]} 4. e5 {[%emt 0:00:11]} Nfd7 {[%emt 0:00:39]} 5. Bd3 {[%emt 0:00:07]} c5 {[%emt 0:00:16]} 6. c3 {[%emt 0:00:05]} Nc6 {[%emt 0:01:12]} 7. Ne2 {[%emt 0:00:08]} Qb6 {[%emt 0:01:57]} 8. Nf3 {[%emt 0:00:10]} cxd4 {[%emt 0:02:19]} 9. cxd4 {[%emt 0:00:09]} Be7 {[%emt 0:01:25]} 10. O-O {[%emt 0:00:11]} h6 {[%emt 0:00:24]} 11. Re1 {[%emt 0:00:07]} g5 {[%emt 0:00:15]} 12. Be3 {[%emt 0:04:54]} Qxb2 {[%emt 0:00:57]} 13. Nd2 {[%emt 0:00:08]} Qb6 {[%emt 0:05:43]} 14. Rb1 {[%emt 0:00:20]} Qc7 {[%emt 0:00:41]} 15. f4 {[%emt 0:03:37]} Nb4 {[%emt 0:00:33]} *

[Event "African Individual Chess-ch Open 2024"]
[Site "Accra"]
[Date "2024.03.15"]
[Round "2.13"]
[White "Ameku, David Selasi"]
[Black "Adewole, Adeyinka Samuel"]
[Result "*"]
[ECO "A80"]
[WhiteElo "1839"]
[BlackElo "1935"]
[Annotator "RC"]
[PlyCount "23"]
[EventDate "2024.03.13"]
[EventCountry "GHA"]
[SourceTitle "playchess.com"]
[Source "ChessBase"]
[SourceQuality "1"]
[TimeControl "5400+30"]

1. d4 {[%emt 0:00:03]} f5 {[%emt 0:00:20]} 2. Nf3 {[%emt 0:00:30]} Nf6 {[%emt 0:00:30]} 3. Bf4 {[%emt 0:00:30]} e6 {[%emt 0:00:30]} 4. e3 {[%emt 0:00:30]} b6 {[%emt 0:00:30]} 5. Be2 {[%emt 0:00:30]} Be7 {[%emt 0:00:30]} 6. h3 {[%emt 0:00:30]} O-O {[%emt 0:00:30]} 7. O-O {[%emt 0:00:30]} Bb7 {[%emt 0:00:30]} 8. Nbd2 {[%emt 0:00:30]} Ne4 {[%emt 0:00:30]} 9. a4 {[%emt 0:00:30]} a5 {[%emt 0:00:30]} 10. Ne5 {[%emt 0:00:30]} d6 {[%emt 0:00:30]} 11. Nd3 {[%emt 0:00:30]} Nd7 {[%emt 0:00:30]} 12. Ne5 {[%emt 0:04:43]} *

[Event "African Individual Chess-ch Open 2024"]
[Site "Accra"]
[Date "2024.03.17"]
[Round "5.1"]
[White "Mwali, Chitumbo"]
[Black "Amin, Bassem"]
[Result "1/2-1/2"]
[ECO "A26"]
[WhiteElo "2340"]
[BlackElo "2670"]
[Annotator "TA"]
[PlyCount "78"]
[EventDate "2024.03.13"]
[EventCountry "GHA"]
[SourceTitle "playchess.com"]
[Source "ChessBase"]
[SourceQuality "1"]
[TimeControl "5400+30"]

{[%evp 14,78,32,34,44,44,39,0,14,21,47,45,85,115,108,87,82,89,87,54,71,64,130,90,81,55,60,80,71,49,54,50,82,48,74,62,68,0,0,-10,37,0,0,0,16,8,13,18,16,23,85,80,89,0,0,0,0,-6,0,0,0,0,0,0,308,296,383]} 1. c4 {[%emt 0:01:09]} g6 {[%emt 0:00:54]} 2. g3 {[%emt 0:00:22]} Bg7 {[%emt 0:00:09]} 3. Bg2 {[%emt 0:00:06]} e5 {[%emt 0:00:31]} 4. Nc3 {[%emt 0:00:11]} d6 {[%emt 0:00:07]} 5. e4 {[%emt 0:00:23]} Nc6 {[%emt 0:00:11]} 6. Nge2 {[%emt 0:00:51]} h5 {[%emt 0:00:07]} 7. h4 {[%emt 0:00:54]} Be6 {[%emt 0:03:00]} 8. d3 {[%emt 0:00:08]} Nh6 {[%emt 0:01:31]} 9. Nd5 {[%emt 0:03:12]} O-O {[%emt 0:00:50]} 10. f3 {[%emt 0:05:29]} Kh7 {[%emt 0:02:12] The position is equal.} 11. Be3 {[%emt 0:01:30]} Nb8 {[%emt 0:09:53]} 12. Qd2 {[%emt 0:02:39]} Nd7 {[%emt 0:00:30] [#]} 13. g4 $1 {[%emt 0:06:05]} hxg4 {[%emt 0:06:41]} 14. h5 {[%emt 0:01:10]} g5 {[%emt 0:00:06]} 15. Bxg5 {[%emt 0:01:15] White has more active pieces.} f6 {[%emt 0:00:02]} 16. Be3 {[%emt 0:01:48]} c6 $1 {[%emt 0:00:22]} 17. Ndc3 {[%emt 0:00:35]} a5 {[%emt 0:20:24]} (17... gxf3 $14 18. Bxf3 f5) 18. fxg4 {[%emt 0:11:07]} Rg8 {[%emt 0:06:02]} 19. O-O-O {[%emt 0:08:18]} Nxg4 {[%emt 0:01:33]} 20. h6 {[%emt 0:00:51]} Bf8 {[%emt 0:00:11] ...Nxe3 is the strong threat.} 21. Bh3 {[%emt 0:00:46]} b5 {[%emt 0:05:02][%cal Bb7b5,Bb5b4][%mdl 32]} 22. Rdg1 {[%emt 0:01:23]} b4 {[%emt 0:01:29]} 23. Nd1 {[%emt 0:00:10] Nf2 would now be deadly.} Qe8 {[%emt 0:12:16]} 24. Ng3 {[%emt 0:28:49]} d5 {[%emt 0:09:39]} 25. Qe2 {[%emt 0:07:11]} ({Better is} 25. Nh5 $14 Qxh5 26. Bxg4 Qxg4 27. Rxg4 Rxg4 28. cxd5 cxd5 29. d4 Rc8+ 30. Kb1 exd4 31. Bxd4) 25... dxc4 {[%emt 0:04:23]} 26. dxc4 {[%emt 0:02:08]} Qf7 {[%emt 0:00:09]} (26... b3 $11 27. axb3 a4) 27. Qf3 {[%emt 0:03:26]} Nxe3 {[%emt 0:03:53]} 28. Bxe6 {[%emt 0:03:04]} Qxe6 {[%emt 0:00:06]} 29. Nxe3 {[%emt 0:00:07] Strongly threatening Ngf5.} Bc5 {[%emt 0:00:48]} 30. Ngf5 {[%emt 0:03:59]} Rg5 {[%emt 0:00:18]} 31. Kb1 {[%emt 0:03:01]} Rf8 {[%emt 0:03:40]} (31... a4 $11 {remains equal.}) 32. Ng7 $16 {[%emt 0:01:49] The board is on fire. A dynamic duo of knights.} Qf7 {[%emt 0:00:24] [#]} 33. Rd1 {[%emt 0:01:10]} (33. Qh3 $1 $16 {Threatens to win with Ne6.} Rxg1+ (33... Qg6 34. Rd1 $16) 34. Rxg1) 33... Bd4 $1 $11 {[%emt 0:00:57]} 34. Rhf1 {[%emt 0:00:13]} a4 {[%emt 0:01:32][%cal Ob4b3]} 35. Nef5 $132 {[%emt 0:00:57][%mdl 2048] White is not keeping still} c5 {[%emt 0:00:52]} 36. Nd6 {[%emt 0:00:11]} Qe7 {[%emt 0:04:38]} 37. Ndf5 {[%emt 0:00:22]} Qf7 {[%emt 0:00:08]} 38. Nd6 {[%emt 0:00:05]} Qg6 {[%emt 0:02:23][%mdl 8192]} (38... Qe7 $1 $11 {and Black has nothing to worry.} 39. Nb5 Rg8) 39. Ne6 $1 $18 {[%emt 0:00:18][%csl LRf8,LRg5]} Rg2 {[%emt 0:00:01][%mdl 32768] Weighted Error Value: White=0.10 (very precise) /Black=0.23 (precise) .  Loses game:     	---       	Black=1      Mistake:       	White=2     	Black=3      Inaccurate:     	White=4     	Black=3      OK:         	White=13    	Black=12     Best:        	White=5     	Black=2      Strong:       	---       	Black=2     . An unexpected result.} 1/2-1/2

[Event "African Individual Chess-ch Open 2024"]
[Site "Accra"]
[Date "2024.03.17"]
[Round "5.2"]
[White "Bellahcene, Bilel"]
[Black "Mhango, Banele"]
[Result "1-0"]
[ECO "B81"]
[WhiteElo "2522"]
[BlackElo "2193"]
[Annotator "TA"]
[PlyCount "141"]
[EventDate "2024.03.13"]
[EventCountry "GHA"]
[SourceTitle "playchess.com"]
[Source "ChessBase"]
[SourceQuality "1"]
[TimeControl "5400+30"]

{[%evp 24,141,26,26,42,31,22,8,43,37,40,58,50,43,55,39,47,50,37,39,28,37,31,46,90,133,111,122,130,0,236,236,233,213,96,69,145,144,156,152,196,128,218,211,210,217,217,210,208,129,147,158,133,133,148,92,166,166,173,173,222,133,173,173,173,173,173,173,126,154,173,173,173,173,173,154,173,173,173,173,173,173,173,173,173,173,173,173,173,173,173,173,173,173,173,173,173,173,173,173,173,173,173,173,173,173,1304,1875,737,1918,2376,2376,1691,1224,917,6070,29965,29963,7116,6218]} 1. e4 {[%emt 0:08:39]} c5 {[%emt 0:00:21]} 2. Nf3 {[%emt 0:00:07]} d6 {[%emt 0:00:04]} 3. d4 {[%emt 0:00:02]} cxd4 {[%emt 0:00:07]} 4. Nxd4 {[%emt 0:00:04]} Nf6 {[%emt 0:00:08]} 5. Nc3 {[%emt 0:00:07]} a6 {[%emt 0:00:04]} 6. h3 {[%emt 0:00:03]} e6 {[%emt 0:03:35]} 7. g4 {[%emt 0:00:05]} Nfd7 {[%emt 0:02:14]} 8. g5 {[%emt 0:00:12]} b5 {[%emt 0:01:35]} 9. a3 {[%emt 0:00:03]} Bb7 {[%emt 0:00:55]} 10. Be3 {[%emt 0:00:16]} Nb6 {[%emt 0:03:39]} 11. h4 {[%emt 0:03:23]} N8d7 {[%emt 0:01:45]} 12. h5 {[%emt 0:00:53]} d5 {[%emt 0:07:07]} 13. exd5 {[%emt 0:12:58]} (13. Qg4 {feels hotter.} Rc8 14. g6 hxg6 15. hxg6 f5 16. Qg1) 13... Nxd5 {[%emt 0:00:15]} 14. Nxd5 {[%emt 0:00:05]} Bxd5 {[%emt 0:00:06]} 15. Rg1 {[%emt 0:00:53]} g6 {[%emt 0:10:06]} 16. Qd2 {[%emt 0:01:37]} Qc7 {[%emt 1:06:29]} 17. O-O-O {[%emt 0:04:37]} Nc5 {[%emt 0:00:00]} 18. Bf4 {[%emt 0:07:41]} Qb7 {[%emt 0:01:00]} 19. Be5 {[%emt 0:08:13]} Rg8 {[%emt 0:00:00]} 20. Kb1 {[%emt 0:02:24]} Nd7 {[%emt 0:00:00]} 21. Bf4 {[%emt 0:10:41]} b4 {[%emt 0:00:00]} 22. axb4 {[%emt 0:01:01]} Bxb4 {[%emt 0:00:00]} 23. Qe3 {[%emt 0:00:19]} Nb6 {[%emt 0:00:00]} 24. hxg6 {[%emt 0:01:43]} hxg6 {[%emt 0:03:00]} 25. Nb3 $1 {[%emt 0:02:50]} Rc8 {[%emt 0:00:00]} 26. Be5 {[%emt 0:03:09]} (26. Rd4 $1 $16 {[%cal Rd4b4]} Nc4 27. Bxc4 Rxc4 28. Rxc4 Bxc4 29. Rd1) 26... Nc4 $2 {[%emt 0:00:00]} (26... Nd7 $11 {and Black is okay.}) 27. Bxc4 $18 {[%emt 0:00:32]} Rxc4 {[%emt 0:00:00]} 28. Rd4 {[%emt 0:01:30]} Rxd4 {[%emt 0:00:00]} 29. Bxd4 {[%emt 0:01:55]} Be7 {[%emt 0:00:00]} (29... Qc6 $14) 30. Nc5 $16 {[%emt 0:01:53]} Bxc5 {[%emt 0:00:00]} 31. Bxc5 {[%emt 0:00:23]} Rh8 {[%emt 0:00:00]} 32. Qd4 {[%emt 0:02:13]} (32. Qe5 $18 Rh1 33. Rxh1 Bxh1 34. Qd6) 32... Rh1 {[%emt 0:00:00]} (32... Rh3 $16 {was worth a try.} 33. Re1 Qc6) 33. Rxh1 $18 {[%emt 0:00:25]} Bxh1 {[%emt 0:00:00]} 34. Qd6 {[%emt 0:00:14]} Be4 {[%emt 0:00:00]} 35. Kc1 {[%emt 0:03:21]} Bf5 {[%emt 0:00:00]} 36. b4 {[%emt 0:01:35]} e5 {[%emt 0:00:00]} 37. Qxe5+ {[%emt 0:05:46]} Kd7 {[%emt 0:00:00]} 38. Qd6+ {[%emt 0:00:23]} Kc8 {[%emt 0:00:00]} 39. Qf8+ {[%emt 0:00:12]} Kc7 {[%emt 0:00:00]} (39... Kd7 $16 {keeps fighting.}) 40. Qxf7+ $18 {[%emt 0:00:25]} Kc6 {[%emt 0:00:00]} 41. Qf6+ {[%emt 0:05:10]} Kb5 {[%emt 0:00:01]} (41... Kc7 $142 42. Qd6+ Kc8) 42. Qd4 {[%emt 0:04:38]} ({Better is} 42. Qd8 $1 $18) 42... Qe4 {[%emt 0:03:06]} 43. c4+ {[%emt 0:01:51]} Kc6 {[%emt 0:01:30]} 44. Qd6+ {[%emt 0:00:59]} Kb7 {[%emt 0:00:04]} 45. Qb6+ {[%emt 0:00:02]} Kc8 {[%emt 0:00:04]} 46. Qxa6+ {[%emt 0:00:02]} Kd7 {[%emt 0:00:12]} 47. Qd6+ {[%emt 0:02:34]} Kc8 {[%emt 0:00:09]} 48. Qf8+ {[%emt 0:00:17]} Kd7 {[%emt 0:00:06]} 49. Qg7+ $1 {[%emt 0:00:43]} Kc8 {[%emt 0:01:11]} 50. Qh8+ {[%emt 0:00:00]} Kc7 {[%emt 0:00:00] [#]} 51. Qc3 $1 {[%emt 0:00:00]} Be6 {[%emt 0:00:00]} 52. Bd4 {[%emt 0:00:00]} Qe2 {[%emt 0:00:00]} 53. c5 {[%emt 0:00:00]} Kc6 {[%emt 0:00:00]} 54. Qe3 {[%emt 0:00:00]} Qc4+ {[%emt 0:00:00] [#]} 55. Bc3 $1 {[%emt 0:00:00]} Kb5 {[%emt 0:00:00]} 56. f3 {[%emt 0:00:00]} Qf1+ {[%emt 0:00:00]} 57. Kd2 {[%emt 0:00:00]} Qg2+ {[%emt 0:00:00]} 58. Qe2+ {[%emt 0:00:00]} Qxe2+ {[%emt 0:00:00]} 59. Kxe2 {[%emt 0:00:00]} Kc4 {[%emt 0:00:00]} 60. Bd2 {[%emt 0:00:00]} Bd7 {[%emt 0:00:00]} 61. Ke3 {[%emt 0:00:00]} Kd5 {[%emt 0:00:00]} 62. Be1 {[%emt 0:00:00]} Bb5 {[%emt 0:00:00]} 63. Bg3 {[%emt 0:00:00]} Bc6 {[%emt 0:00:19]} 64. Kd3 {[%emt 0:00:00]} Bb5+ $2 {[%emt 0:01:00]} (64... Bd7 65. Kc3 Kc6) 65. Kc3 $18 {[%emt 0:00:00]} Bd7 {[%emt 0:07:47]} 66. Kb3 {[%emt 0:00:00]} Bb5 {[%emt 0:00:55]} 67. Bd6 {[%emt 0:00:00]} Kd4 {[%emt 0:01:45]} 68. f4 {[%emt 0:00:00]} Ke4 {[%emt 0:00:25]} 69. Kc3 {[%emt 0:00:00]} Ba6 {[%emt 0:00:25]} 70. c6 {[%emt 0:03:40]} Kd5 {[%emt 0:03:16]} 71. f5 {[%emt 0:00:15]} ({Inferior is} 71. c7 Kxd6 72. f5 gxf5 $11) 1-0